Cogmind - Beta 16 --- EXPLORER MODE // 2026.01.15 @ 10:09:28 Player: K.K.Y. Result: Destroyed by 9M-1R9(R) with Subdweller Machine Gun Performance ------------- Evolutions (0) 0 Regions Visited (3) 600 Robots Destroyed (23) 115 Value Destroyed (626) 626 Prototype IDs (2) 40 Alien Tech Used (0) 0 Bonus (0) 0 TOTAL SCORE: 1381 Bonus ------- None Cogmind --------- Core Integrity 0/250 Matter 265/300 Energy 67/100 System Corruption 0% Temperature Cool (0) Movement Core (850) Ox16 Location -10/Subcaves Parts ------- > --- POWER (1) -------- (None) > --- PROPULSION (2) --- (None) > --- UTILITY (3) ------ High-capacity Storage Unit Structural Scanner Light Armor Plating > --- WEAPON (2) ------- Subdweller Laser Battle Cannon > --- INVENTORY (20) --- Subdweller Power Source Subdweller Power Source Medium Storage Unit Huge Storage Unit Sensor Array Improved Terrain Scanner Launcher Guidance Computer ECM Suite ECM Suite ECM Suite ECM Suite Makeshift System Shield Battle Cannon Battle Cannon Slug Cannon Mining Laser Makeshift Sword Makeshift Spear Peak State ------------ > --- POWER ------------ Subdweller Power Source > --- PROPULSION ------- Light Treads > --- UTILITY ---------- Medium Storage Unit Structural Scanner ECM Suite > --- WEAPON ----------- Subdweller Laser Battle Cannon > --- INVENTORY -------- High-capacity Storage Unit Huge Storage Unit Sensor Array Improved Terrain Scanner Launcher Guidance Computer ECM Suite ECM Suite ECM Suite Light Armor Plating Mining Laser [Rating: 11] Favorites ----------- Power Ion Engine Engine Ion Engine Propulsion Light Treads Treads Light Treads Utility Structural Scanner Device Structural Scanner Storage Medium Storage Unit Protection Light Armor Plating Weapon Medium Laser Energy Gun Medium Laser Energy Cannon Beam Cannon Ballistic Cannon Battle Cannon Special Weapon Mining Laser Build | -11 -10 -10 -10 ------- Run | Yrd Mat Min Sub Slots Evolved 1 | . 1 . . Power . | . . . . Propulsion . | . . . . Utility 1 | . 1 . . Weapon . | . . . . Parts Attached 22 | 7 9 2 4 Power 4 | 1 1 1 1 Engine 4 | 1 1 1 1 Core . | . . . . Reactor . | . . . . Propulsion 4 | 2 2 . . Treads 4 | 2 2 . . Leg . | . . . . Wheel . | . . . . Hover . | . . . . Flight . | . . . . Utility 7 | 2 3 1 1 Device 4 | 1 2 1 . Storage 2 | . 1 . 1 Processor . | . . . . Hackware . | . . . . Protection 1 | 1 . . . Artifact . | . . . . Weapon 7 | 2 3 . 2 Energy Gun 4 | 2 1 . 1 Energy Cannon 1 | . 1 . . Ballistic Gun . | . . . . Ballistic Cannon 1 | . . . 1 Launcher . | . . . . Special Weapon 1 | . 1 . . Impact Weapon . | . . . . Slashing Weapon . | . . . . Piercing Weapon . | . . . . Special Melee Weapon . | . . . . Unidentified Prototypes . | . . . . Parts Lost 5 | . 2 . 3 Power 1 | . . . 1 Propulsion 2 | . . . 2 Utility 1 | . 1 . . Weapon 1 | . 1 . . Highest Loss Streak 2 | . 2 . 2 To Critical Strikes . | . . . . Average Backups 9 | 1 7 9 12 Power . | . . . . Propulsion . | . 1 . . Utility 7 | 1 5 8 9 Weapon 1 | . 1 1 2 Tool/Special . | . . . . Unused Backups 15 | . . . 15 Power 2 | . . . 2 Propulsion . | . . . . Utility 8 | . . . 8 Weapon 5 | . . . 5 Tool/Special . | . . . . Average Slot Usage (%) 89 | . 84 100 74 Engine 9 | . 11 12 3 Treads 20 | . 25 25 8 Device 20 | . 15 25 17 Storage 11 | . 10 12 12 Protection 2 | . 1 . 6 Energy Gun 12 | . 13 11 11 Energy Cannon 7 | . 4 12 3 Ballistic Cannon 2 | . . . 8 Peak Build Rating 11 | 7 9 9 11 Average Rating 8 | 5 7 9 9 On Entrance 6 | . 7 9 9 Avg Prop Armor Cover (%) . | . . . . Naked Turns . | . . . . Heaviest Build 51 | 12 23 23 51 Greatest Support 40 | 40 40 40 40 Greatest Overweight (x) 16 | . . . 16 Average Overweight (x) . | . . . 2 Largest Inventory Capacity 20 | 5 10 10 20 Average Capacity 10 | 5 9 10 14 Most Carried 18 | 5 10 10 18 Average Carried 9 | 2 7 9 12 Final Capacity 20 | 5 10 10 20 Final Carried 18 | 3 8 10 18 Class Distribution -------------------- 100% | Hacker-Mutant Dominant Class ---------------- Hacker-Mutant | -10/Materials Hacker-Mutant | -10/Mines Hacker-Mutant | -10/Subcaves Resources | -11 -10 -10 -10 ----------- Run | Yrd Mat Min Sub Matter Collected 510 | 261 79 60 110 Remotely . | . . . . Salvage Created 991 | 92 473 103 323 Parts 39 | 6 19 . 14 Haulers Intercepted 2 | . 2 . . Recyclers Shooed . | . . . . Parts Field Recycled . | . . . . Retrieved Matter . | . . . . Parts Self-Destructed . | . . . . Prevented . | . . . . Parts Restored . | . . . . Kills | -11 -10 -10 -10 ------- Run | Yrd Mat Min Sub Combat Hostiles Destroyed 19 | . 9 3 7 Guns 12 | . 6 1 5 Cannons 6 | . 2 2 2 AOE 1 | . 1 . . Classes Destroyed 9 | 2 5 1 1 Builder 1 | . 1 . . Tunneler 1 | 1 . . . Hauler 2 | . 2 . . Recycler 1 | 1 . . . Watcher 1 | . 1 . . Swarmer 2 | . 2 . . Grunt 7 | . 7 . . Subdweller 7 | . . . 7 Assembled 2 | . . 2 . Best Kill Streak 3 | 2 2 3 3 Combat Bots Only 3 | . 2 3 3 Max Kills in Single Turn 1 | 1 1 1 1 Gunslinging . | . . . . Exploded 1 | . 1 . . Melee . | . . . . Uniques/NPCs Destroyed 1 | . . 1 . YI-UF0 (-10/Mines) Combat | -11 -10 -10 -10 -------- Run | Yrd Mat Min Sub Hostile Shots Fired 136 | . 62 18 56 Missed 46 | . 20 8 18 Hits 90 | . 42 10 38 Projectile 90 | . 42 10 38 AOE 14 | . . 8 6 Critical Strikes 1 | . 1 . . Damage Taken 1164 | . 316 180 668 Core 255 | . 63 30 162 Absorbed by Shields . | . . . . Ignored by Resistances 698 | . 203 106 389 Core Remaining (%) 100 | 100 . . . Volleys Fired 109 | 8 56 11 34 Largest 2 | 2 2 2 2 Hottest 160 | 90 140 160 110 Shots Fired 174 | 13 80 22 59 Gun 121 | 13 66 8 34 Cannon 48 | . 12 11 25 Launcher . | . . . . Special 5 | . 2 3 . Kinetic 15 | . . . 15 Thermal 139 | 5 68 22 44 Explosive . | . . . . Electromagnetic 20 | 8 12 . . Robot Hit Streak 44 | 4 23 6 44 Robot Miss Streak 5 | 1 5 1 1 Penetration Max . | . . . . Secondary Targets . | . . . . Shots Hit Robots 134 | 10 61 11 52 Core Hits 46 | 3 22 6 15 Critical Kills . | . . . . Critical Parts Destroyed . | . . . . Critical Strikes 10 | 3 5 . 2 Burn 8 | 2 5 . 1 Blast 1 | . . . 1 Corrupt 1 | 1 . . . Melee Attacks . | . . . . Impact . | . . . . Slashing . | . . . . Piercing . | . . . . Sneak Attacks . | . . . . Combat Hostiles . | . . . . Follow-up Attacks . | . . . . Damage Inflicted 2048 | 133 945 168 802 Guns 1325 | 133 689 63 440 Cannons 591 | . 124 105 362 Explosions 108 | . 108 . . Melee . | . . . . Ramming . | . . . . Kinetic 222 | . . . 222 Thermal 1593 | 37 808 168 580 Explosive . | . . . . Electromagnetic 233 | 96 137 . . Impact . | . . . . Slashing . | . . . . Piercing . | . . . . Highest Corruption . | . . . . Average Corruption . | . . . . Corruption Purged . | . . . . Corruption Blocked . | . . . . Overload Shots . | . . . . Overflow Damage 10 | . 10 . . Projectiles . | . . . . Explosions 10 | . 10 . . Melee . | . . . . Knockbacks 4 | . . . 4 Impact . | . . . . Kinetic 4 | . . . 4 Secondary . | . . . . Self-Inflicted Damage . | . . . . Shots . | . . . . Rammed . | . . . . Targets Rammed . | . . . . Kicked . | . . . . Crushed . | . . . . Highest Temperature 288 | 156 234 288 6 Average Temperature 72 | 56 61 127 2 Received Heat Transfer 393 | . 261 . 132 Siege Activations . | . . . . Martial Activations . | . . . . Shielding Activations . | . . . . Robots Disrupted . | . . . . Combat Hostiles . | . . . . Robots Corrupted . | . . . . Combat Hostiles . | . . . . Parts Fried 1 | 1 . . . Impact Corruptions . | . . . . Robots Melted . | . . . . Combat Hostiles . | . . . . Parts Melted 11 | . 9 1 1 Heat Transferred 4346 | 259 2357 407 1323 Parts Sabotaged . | . . . . Parts Stolen . | . . . . Parts Stripped . | . . . . Power Chain Reactions 1 | . 1 . . Alert | -11 -10 -10 -10 ------- Run | Yrd Mat Min Sub Maximum Alert Level . | . . . . Low Security (%) 100 | 100 100 100 . Level 1 . | . . . . Level 2 . | . . . . Level 3 . | . . . . Level 4 . | . . . . Level 5 . | . . . . High Security . | . . . . Max Security . | . . . . Peak Influence 54 | 5 54 . . Initial . | . . . . Average 2 | . 7 . . Influence Increases 279 | 10 269 . . Destroy 0b10 Robot/C 180 | . 180 . . Destroy 0b10 Robot/NC 30 | 10 20 . . Destroy Leader 56 | . 56 . . Successful Hack 5 | . 5 . . Disable Machine 4 | . 4 . . Destroy Structure 4 | . 4 . . Influence Decreases 279 | 10 269 . . Time Decay 279 | 10 269 . . Squads Dispatched 1 | . 1 . . Investigation 1 | . 1 . . Extermination . | . . . . Reinforcement . | . . . . Assault . | . . . . Garrison . | . . . . Intercept . | . . . . Searches Triggered . | . . . . Construction Impeded . | . . . . Haulers Reinforced . | . . . . Active Scanning Responses . | . . . . Cargo Convoy Interrupts . | . . . . Stealth | -11 -10 -10 -10 --------- Run | Yrd Mat Min Sub Distress Signals 2 | . 1 1 . Communications Jammed . | . . . . Distress Signals . | . . . . Times Spotted 29 | . 16 4 9 Peak Tracking Total 4 | . 4 3 3 Tactical Retreats 2 | . 1 1 . ECM-based Alert Blocks 1 | . 1 . . Traps | -11 -10 -10 -10 ------- Run | Yrd Mat Min Sub Traps Triggered 1 | . 1 . . Indirectly . | . . . . Trap Hack Attempts . | . . . . Triggered . | . . . . Disarmed . | . . . . Reprogrammed . | . . . . Reused . | . . . . Traps Extracted . | . . . . Installed . | . . . . Triggered . | . . . . Machines | -11 -10 -10 -10 ---------- Run | Yrd Mat Min Sub Machines Disabled 1 | . 1 . . Max in Single Turn 1 | . 1 . . Machines Repaired . | . . . . Machines Dismantled . | . . . . Machines Sabotaged . | . . . . Overloaded Fab Kills . | . . . . Hacking | -11 -10 -10 -10 --------- Run | Yrd Mat Min Sub Machines Accessed 3 | . 2 . 1 Terminals 1 | . 1 . . Fabricators . | . . . . Repair Stations . | . . . . Recycling Units 1 | . 1 . . Scanalyzers . | . . . . Garrison Access . | . . . . Total Hacks 14 | . 10 . 4 Successful 13 | . 9 . 4 Failed 1 | . 1 . . Catastrophic . | . . . . Database Lockouts . | . . . . Manual 1 | . 1 . . Terminals 8 | . 8 . . Fabricators . | . . . . Repair Stations . | . . . . Recycling Units 2 | . 2 . . Scanalyzers . | . . . . Garrison Access . | . . . . Terminal Hacks 11 | . 7 . 4 Record 8 | . 4 . 4 Prototype ID Bank 1 | . 1 . . Locate Traps 1 | . 1 . . Investigation Status 1 | . 1 . . Fabricator Hacks . | . . . . Repair Station Hacks . | . . . . Recycling Unit Hacks 1 | . 1 . . Retrieve Components 1 | . 1 . . Scanalyzer . | . . . . Garrison Access Hacks . | . . . . Unauthorized Hacks 1 | . 1 . . Terminals . | . . . . Fabricators . | . . . . Repair Stations . | . . . . Recycling Units 1 | . 1 . . Reject 1 | . 1 . . Scanalyzers . | . . . . Garrison Access . | . . . . Data Cores Recovered . | . . . . Used . | . . . . Hacking Detections 2 | . 2 . . Full Trace Events 1 | . 1 . . Feedback Events . | . . . . Feedback Blocked . | . . . . Robot Schematics Acquired . | . . . . Robots Built . | . . . . Authchips . | . . . . Time . | . . . . Total Robot Build Rating . | . . . . Part Schematics Acquired . | . . . . Parts Built . | . . . . Authchips . | . . . . Time . | . . . . Total Part Build Rating . | . . . . Part Studies Acquired . | . . . . Parts Repaired . | . . . . Time . | . . . . Parts Recycled . | . . . . Recycled Matter . | . . . . Retrieved Matter . | . . . . Retrieved Components . | . . . . Parts Scanalyzed . | . . . . Part Schematics Acquired . | . . . . Parts Damaged . | . . . . Bothacking | -11 -10 -10 -10 ------------ Run | Yrd Mat Min Sub Used RIF Installer . | . . . . Robots Hacked . | . . . . Non-combat . | . . . . Combat . | . . . . Robot Hacks Applied . | . . . . Relay Couplers Released . | . . . . Fabnet Peak Effective % . | . . . . Robots Rewired . | . . . . Allies Hacked . | . . . . Hacks Repelled . | . . . . Allies | -11 -10 -10 -10 -------- Run | Yrd Mat Min Sub Total Allies . | . . . . Largest Group . | . . . . Highest-Rated Group . | . . . . Highest-Rated Ally . | . . . . Total Orders . | . . . . Ally Attacks . | . . . . Total Damage . | . . . . Kills . | . . . . Allies Corrupted . | . . . . Allies Melted . | . . . . Intel | -11 -10 -10 -10 ------- Run | Yrd Mat Min Sub Active Infowar (turns) 4007 | 96 1000 2001 910 Structural 3803 | . 892 2001 910 ECM 2626 | 96 366 2001 163 Robot Analysis Total . | . . . . Derelict Logs Recovered 1 | . . . 1 Drone Launches . | . . . . Drone Recoveries . | . . . . Exploration | -11 -10 -10 -10 ------------- Run | Yrd Mat Min Sub Turns Passed 4268 | 117 1000 2001 1150 Spaces Moved 1883 | 57 502 985 339 Core 76 | 18 . . 58 Treads 1807 | 39 502 985 281 Legs . | . . . . Wheels . | . . . . Hover . | . . . . Flight . | . . . . Fastest Speed 50 | 50 160 160 160 Average Speed 184 | 125 160 160 304 Slowest Speed 850 | 160 160 160 850 Overloaded Moves . | . . . . Propulsion Burnouts . | . . . . Robots Hopped . | . . . . Potential Cave-ins . | . . . . Cave-ins Triggered . | . . . . Exploration Rate (%) 54 | 5 89 98 25 Regions Visited 3 Branch Regions 2 Pre-discovered Areas 2 | . . 1 1 Known Exits Taken 3 | 1 1 1 . Unknown Exits Taken . | . . . . Scrap Searched 8 | . . 3 5 Spaces Dug . | . . . . Terrain Destroyed 3 | . 3 . . Melee . | . . . . Projectile . | . . . . AOE 3 | . 3 . . Terrain Rammed . | . . . . Walls Destroyed . | . . . . Machines Disabled . | . . . . Actions | -11 -10 -10 -10 --------- Run | Yrd Mat Min Sub Total 2489 | 89 612 1383 405 Wait 433 | 9 27 381 16 Move 1880 | 56 501 984 339 Hop . | . . . . Pick Up 30 | 8 12 2 8 Fast Attach 6 | 3 2 . 1 Attach 7 | 4 3 . . Detach . | . . . . Swap 15 | . 7 3 5 Drop 9 | 1 4 2 2 Fire 109 | 8 56 11 34 Melee . | . . . . Ram . | . . . . Kick . | . . . . Crush . | . . . . Escape Stasis . | . . . . Rewire . | . . . . Trap . | . . . . Miscellaneous . | . . . . Route ------- -11/Scrapyard -10/Materials (discovered 5 exits: *Mat x2 / *Min x2 / *Sub) -10/Mines (discovered 4 exits: *Mat x2 / *Exi / *Sub) -10/Subcaves (discovered 1 exit: Rec) History --------- Turn | Location | Event 18 | -11/Scrapyard | Identified exit to Materials 18 | -11/Scrapyard | Discovered exit to Materials (range 15) 118 | -11/Scrapyard | Entered Materials 118 | -10/Materials | Evolved 1 slot: Utility x1 314 | -10/Materials | Build established: Hacker-Mutant 328 | -10/Materials | Identified exit to Mines 328 | -10/Materials | Discovered exit to Mines (range 7) 517 | -10/Materials | Identified exit to Subcaves 517 | -10/Materials | Discovered exit to Subcaves (range 7) 613 | -10/Materials | Identified exit to Materials 613 | -10/Materials | Discovered exit to Materials (range 9) 825 | -10/Materials | Discovered exit to Materials (range 15) 1069 | -10/Materials | Discovered exit to Mines (range 16) 1118 | -10/Materials | Entered Mines 1119 | -10/Mines | Assembled infested the area 1124 | -10/Mines | Assisted by a Guerilla fighting off Assembled 1162 | -10/Mines | Discovered exit to Materials (range 9) 1183 | -10/Mines | Discovered exit to Materials (range 14) 1305 | -10/Mines | Learned location of Storage (-9) 1384 | -10/Mines | Deemed a non-threat by the Exiles lab entrance 1384 | -10/Mines | Identified exit to Exiles 1384 | -10/Mines | Discovered exit to Exiles (range 5) 1489 | -10/Mines | Destroyed YI-UF0 3106 | -10/Mines | Discovered exit to Subcaves (range 4) 3119 | -10/Mines | Entered Subcaves 3132 | -10/Subcaves | Learned location of Zion (-6) 3224 | -10/Subcaves | Ambushed by Subdwellers from Twisted Machinery 3258 | -10/Subcaves | Core integrity fell below 50% 3267 | -10/Subcaves | Ambushed by Subdweller buried in earth 3285 | -10/Subcaves | Core integrity fell below 20% 3562 | -10/Subcaves | Identified exit to Recycling 3562 | -10/Subcaves | Discovered exit to Recycling (range 17) 3595 | -10/Subcaves | Visited Clippyterm 3600 | -10/Subcaves | Learned Research machine intel 3680 | -10/Subcaves | A swath of the cavern ceiling suddenly collapsed 3767 | -10/Subcaves | Disturbed a concealed Subdweller 3767 | -10/Subcaves | Disturbed a concealed Subdweller 4269 | -10/Subcaves | Destroyed by 9M-1R9(R) with Subdweller Machine Gun Last Messages --------------- 03927_ Acquired Slug Cannon. 03939_ Subatomizers dissect the Battle Rifle. 03978_ Subatomizers dissect the Sub. Shrapnel Launcher. 03979_ Acquired Sub. Power Source. 04030_ Subatomizers dissect the Sub. Shrapnel Launcher. 04043_ Subatomizers dissect the Disposable Heat Sink. 04079_ Subatomizers dissect the Battle Rifle. 04115_ Subatomizers dissect the Sub. Laser, destroying it. 04212_ 7K-T7H(R) knocked back. 04218_ 7K-T7H(R) Sub. Optics blasted off. 04218_ 7K-T7H(R) knocked back. 04227_ 7K-T7H(R) destroyed. 04247_ Acquired 15 matter. 04265_ 9M-1R9(R) knocked back. Map ----- +----------------------------------------------------+ | ?????????????????????????????????????????????????? | | ?????????????????????????????????????????????????? | | ?????????????????????????????????????????????????? | | ?????????????????????????????????????????????????? | | ?????????????????????????????????????????????????? | | ?????????????????????????????????????????????????? | | ?????????????????????????????????????????????????? | | ?????????????????????????????????????????????????? | | ?????????????????????????????????????????????????? | | ?????????????????????????????????????????????????? | | ?????????????????????????????????????????????????? | | ?????????????????????????????????????????????????? | | ???????????????????????####??????????????????????? | | ????????????????????? ###??????????????????????? | | ???????????????????? "??????????????????????? | | ???????????????????? ??????? ##?????????????? | | ???????????????????? ??????? ##?????????????? | | ????????????????????? ????? ##?????????????? | | ????????????????????? "???? ###?????????????? | | ????????????????????? "### ###?????????????? | | ???????????????????? ## "### ##?????????????? | | ???????????????????#### "" ##?????????????? | | ???????????????????###" "" ?????????????????? | | ???????????????????## " "" ???????????????????? | | ???????????????????##"" R"" ######???????????????? | | ???????????????????## % @"########??????????????? | | ??????????????????##### " #### ###??????????????? | | ??????????????????#####%! ### ##??????????????? | | #??????????????????##### ###??????????????? | | #????#### ???????##### ###???????????????? | | ????#######?????? ### % ###???????????????? | | #???### ###?### ### ##????????????????? | | #?#### ##?### ### ###????????????????? | | #?#### ##### ### ####????????????????? | | #?## #### # # ####?????????????????? | | #### ### ####??????????????????? | | #### ## # ## ####??????????????????? | | ## #### # ####????????????????? | | ## ####????????????????? | | ##????????????????? | | ## # ## ###????????????????? | | ####?###### #### ###????????????????? | | # ######?##### #######?????????????????? | | ""# ###??????### ######?????????????????? | | #"###"# ###??????### #########????????????? | | #"#"""""#""###???#### #########????????????? | | """###"##""########## ## ##????????????? | | "##"###"""#"####### ]%] ##????????????? | | ###"##"""""## & & % ###????????????? | | #" #"####"##"# !%% [ ####????????????? | +----------------------------------------------------+ Best States ------------- Heat Dissipation 25 Energy Generation 15 Energy Capacity 250 Matter Stores 300 Matter Capacity 300 Sight Range 16 Terrain Scan Density 10 ECM Strength 1 Armor Coverage 150 Resistance: KI 35 Resistance: TH 35 Resistance: EX 35 Resistance: EM 35 Resistance: I 35 Resistance: S 35 Resistance: P 35 Evasion (%) 50 Recoil Reduction 2 Offensive Hacking 20 Item Schematics ----------------- None Robot Schematics ------------------ None Fabricated ------------ Nothing Repaired ---------- Nothing Studied --------- None Alien Tech Used ----------------- None Achievements -------------- None Challenges ------------ None Game ------ Seed CarbideTransmissionMultitool Manual? 0 Play Time 00:17:26 Cumulative 278.8 hours Start 2026.01.15 @ 09:55:15 End 2026.01.15 @ 10:09:28 Sessions 1 Manual Loads 0 Difficulty Explorer Special Mode None Game No. 437 Rogue 0 Adventurer 0 Explorer 437 Win Type - Total 0 Types 0/0/0/0/0/0/0/0/0/0 Lore% 74 Gallery% 69 Achievement% 55 Wizard Run 0 Options --------- Layout 1 ASCII 0 Keyboard 0 Movement Mouse Keybinds 1 Fullscreen 1 Font 24/Smallcaps Map View 50x35 Zoom Use 0% Tactical HUD 1 Map Filters NONE Filters NONE Steam 1 RUN: bebf5568-e434-48e3-8e6b-2cfa476011da